fUST/lending_fUST_20240927
["ID","MTS","AMOUNT","RATE_DAILY","PERIOD"]
[339271570,1727426948728,-153.0,0.00019577,2]
[339271571,1727426948750,-153.0,0.00019577,2]
[339271572,1727426948770,-153.0,0.00019577,2]
[339271573,1727426948792,-153.0,0.00019577,2]
[339271574,1727426948812,-153.0,0.00019577,2]
[339271575,1727426948834,-153.0,0.00019577,2]
[339271576,1727426948855,-1468.8444852,0.00019628,2]
[339271577,1727426948887,-500.0,0.00019726,2]
[339271578,1727426948913,-500.0,0.00019726,2]
[339271579,1727426948937,-500.0,0.0002,2]
[339271580,1727426948959,-500.0,0.0002,2]
[339271581,1727426948981,-500.0,0.00020273,2]
[339271582,1727426949002,-1820.91969052,0.00020537,7]
[339271583,1727426949025,-2580.19,0.00020547,2]
[339271584,1727426949048,-500.0,0.00020547,2]
[339271585,1727426949070,-500.0,0.00020547,2]
[339271586,1727426949092,-500.0,0.00020568,2]
[339271587,1727426949115,-2580.19,0.00020821,2]
[339271588,1727426949145,-500.0,0.00020821,2]
[339271589,1727426949178,-500.0,0.00020821,2]
[339271590,1727426949209,-500.0,0.00020842,2]
[339271591,1727426949238,-158.16523034,0.000209,2]
[339271592,1727426949265,-506.98960382,0.00020973,2]
[339271593,1727426949293,-203.82955796,0.00020979,2]
[339271594,1727426949322,-500.0,0.00020979,2]
[339271595,1727426949352,-318.73414898,0.00020979,2]
[339271596,1727426949381,-500.0,0.00020979,2]
[339271597,1727426949409,-391.02136291,0.00020979,2]
[339271598,1727426949440,-175.91201921,0.00020979,2]
[339271599,1727426949467,-12941.39185029,0.0002098,3]
[339271605,1727426956159,-321.06162318,0.00020273,2]
[339271606,1727426956186,-38148.62989291,0.0002098,3]
[339271607,1727426956214,-13873.04901831,0.0002098,3]
[339271608,1727426963136,-21194.4510301,0.0002098,3]
[339271609,1727426966117,-19253.76841351,0.0002098,3]
[339271640,1727427031790,-300.0,0.00019567,2]
[339271641,1727427031801,-153.0,0.00019568,2]
[339271642,1727427031811,-153.0,0.00019568,2]
[339271643,1727427031821,-153.0,0.00019568,2]
[339271644,1727427031832,-153.0,0.00019568,2]
[339271645,1727427031842,-153.0,0.00019568,2]
[339271646,1727427031852,-153.0,0.00019568,2]
[339271647,1727427031863,-153.0,0.00019568,2]
[339271648,1727427031873,-153.0,0.00019568,2]
[339271649,1727427031883,-153.0,0.00019568,2]
[339271650,1727427031893,-2784.59,0.00020536,2]
[339271651,1727427031902,-500.0,0.00020536,2]
[339271652,1727427031912,-2784.59,0.0002081,2]
[339271653,1727427031922,-500.0,0.0002081,2]
[339271654,1727427031933,-1606.87,0.0002098,3]
[339271693,1727427038218,-331.75664463,0.0002098,3]
[339271742,1727427039985,-67344.06991945,0.0002098,3]
[339271743,1727427039996,-28037.23726915,0.0002099,3]
[339271744,1727427041918,-74142.80621685,0.0002099,3]
[339271745,1727427041927,-61801.9825131,0.0002099,3]
[339271746,1727427041936,-1213.94646034,0.0002099,7]
[339271747,1727427041946,-500.0,0.00021,30]
[339271748,1727427041955,-500.0,0.00021,30]
[339271749,1727427041964,-500.0,0.00021,30]
[339271750,1727427041974,-500.0,0.00021,30]
[339271751,1727427041983,-500.0,0.00021,30]
[339271752,1727427041992,-800.0,0.00021,30]
[339271753,1727427042002,-500.0,0.00021,30]
[339271754,1727427042011,-500.0,0.00021,30]
[339271755,1727427042020,-500.0,0.00021,30]
[339271756,1727427042029,-500.0,0.00021,30]
[339271757,1727427042038,-500.0,0.00021,30]
[339271758,1727427042048,-500.0,0.00021,30]
[339271759,1727427042057,-500.0,0.00021,30]
[339271760,1727427042066,-500.0,0.00021,30]
[339271761,1727427042076,-500.0,0.00021,30]
[339271762,1727427042085,-500.0,0.00021,30]
[339271763,1727427042094,-500.0,0.00021,30]
[339271764,1727427042103,-500.0,0.00021,30]
[339271765,1727427042112,-500.0,0.00021,30]
[339271766,1727427042122,-500.0,0.00021,30]
[339271767,1727427042131,-500.0,0.00021,30]
[339271768,1727427042141,-500.0,0.00021,30]
[339271769,1727427042150,-500.0,0.00021,30]
[339271770,1727427042159,-500.0,0.00021,30]
[339271771,1727427042168,-500.0,0.00021,30]
[339271772,1727427042178,-500.0,0.00021,30]
[339271773,1727427042187,-500.0,0.00021,30]
[339271774,1727427042196,-500.0,0.00021,30]
[339271775,1727427042205,-500.0,0.00021,30]
[339271776,1727427042214,-500.0,0.00021,30]
[339271777,1727427042223,-500.0,0.00021,30]
[339271778,1727427042232,-500.0,0.00021,30]
[339271779,1727427042242,-500.0,0.00021,30]
[339271780,1727427042252,-500.0,0.00021,30]
[339271781,1727427042261,-3000.0,0.00021,2]
[339271782,1727427042271,-500.0,0.00021,30]
[339271783,1727427042283,-500.0,0.00021,30]
[339271784,1727427042293,-500.0,0.00021,30]
[339271785,1727427042302,-500.0,0.00021,30]
[339271786,1727427042312,-500.0,0.00021,30]
[339271787,1727427042323,-501.80833123,0.00021,30]
[339271788,1727427042332,-500.0,0.00021,30]
[339271789,1727427042342,-500.0,0.00021,30]
[339271790,1727427042351,-675.71650789,0.00021,30]
[339271792,1727427042364,-500.0,0.00021,30]
[339271793,1727427042375,-500.0,0.00021,30]
[339271794,1727427042384,-631.02725656,0.00021,30]
[339271795,1727427042393,-500.0,0.00021,30]
[339271796,1727427042403,-500.0,0.00021,30]
[339271797,1727427042412,-500.0,0.00021,30]
[339271798,1727427042422,-500.0,0.00021,30]
[339271799,1727427042430,-900.0,0.00021,30]
[339271800,1727427042441,-500.0,0.00021,30]
[339271801,1727427042450,-500.0,0.00021,30]
[339271802,1727427042461,-500.0,0.00021,30]
[339271803,1727427042470,-500.0,0.00021,30]
[339271804,1727427042479,-500.0,0.00021,30]
[339271805,1727427042489,-500.0,0.00021,30]
[339271806,1727427042498,-500.0,0.00021,30]
[339271807,1727427042508,-500.0,0.00021,30]
[339271808,1727427042517,-500.0,0.00021,30]
[339271809,1727427042526,-500.0,0.00021,30]
[339271810,1727427042535,-154.74467129,0.00021,30]
[339271811,1727427042545,-500.0,0.00021,30]
[339271812,1727427042554,-500.0,0.00021,30]
[339271813,1727427042564,-500.0,0.00021,30]
[339271814,1727427042573,-500.0,0.00021,30]
[339271815,1727427042583,-276.8824371,0.00021,30]
[339271816,1727427042591,-500.0,0.00021,30]
[339271817,1727427042601,-500.0,0.00021,30]
[339271818,1727427042610,-500.0,0.00021,30]
[339271819,1727427042620,-500.0,0.00021,30]
[339271820,1727427042629,-500.0,0.00021,30]
[339271821,1727427042638,-500.0,0.00021,30]
[339271822,1727427042648,-500.0,0.00021,30]
[339271823,1727427042658,-500.0,0.00021,30]
[339271824,1727427042668,-500.0,0.00021,30]
[339271825,1727427042677,-500.0,0.00021,30]
[339271826,1727427042687,-500.0,0.00021,30]
[339271827,1727427042697,-546.55036028,0.00021,30]
[339271828,1727427042706,-500.0,0.00021,30]
[339271829,1727427042715,-559.82866608,0.00021,30]
[339271830,1727427042725,-499.3,0.00021,30]
[339271831,1727427042734,-500.0,0.00021,30]
[339271832,1727427042744,-939.9144285,0.00021,30]
[339271833,1727427042756,-504.39221637,0.00021,30]
[339271834,1727427042767,-504.42998189,0.00021,30]
[339271835,1727427042777,-503.72618512,0.00021,30]
[339271836,1727427042786,-500.0,0.00021,30]
[339271837,1727427042795,-500.0,0.00021,30]
[339271838,1727427042805,-154.74467129,0.00021,30]
[339271839,1727427042814,-500.0,0.00021,30]
[339271840,1727427042823,-500.0,0.00021,30]
[339271841,1727427042833,-500.0,0.00021,30]
[339271842,1727427042842,-500.0,0.00021,30]
[339271843,1727427042852,-500.0,0.00021,30]
[339271844,1727427042861,-500.0,0.00021,30]
[339271845,1727427042870,-500.0,0.00021,30]
[339271846,1727427042880,-500.0,0.00021,30]
[339271847,1727427042889,-500.0,0.00021,30]
[339271848,1727427042899,-500.0,0.00021,30]
[339271849,1727427042908,-500.0,0.00021,30]
[339271850,1727427042917,-500.0,0.00021,30]
[339271851,1727427042927,-500.0,0.00021,30]
[339271852,1727427042938,-500.0,0.00021,30]
[339271853,1727427042948,-500.0,0.00021,30]
[339271854,1727427042959,-500.0,0.00021,30]
[339271855,1727427042969,-500.0,0.00021,30]
[339271856,1727427042978,-500.0,0.00021,30]
[339271857,1727427042987,-500.0,0.00021,30]
[339271858,1727427042997,-500.0,0.00021,30]
[339271859,1727427043007,-500.0,0.00021,30]
[339271860,1727427043016,-500.0,0.00021,30]
[339271861,1727427043026,-500.0,0.00021,30]
[339271862,1727427043036,-499.3,0.00021,30]
[339271863,1727427043045,-510.77584455,0.00021,30]
[339271864,1727427043054,-500.0,0.00021,30]
[339271865,1727427043064,-500.0,0.00021,30]
[339271866,1727427043073,-500.0,0.00021,30]
[339271867,1727427043082,-500.0,0.00021,30]
[339271868,1727427043092,-501.66777924,0.00021,30]
[339271869,1727427043101,-500.0,0.00021,30]
[339271870,1727427043111,-500.0,0.00021,30]
[339271871,1727427043120,-500.0,0.00021,30]
[339271872,1727427043130,-504.56334162,0.00021,30]
[339271873,1727427043139,-500.0,0.00021,30]
[339271874,1727427043149,-500.0,0.00021,30]
[339271875,1727427043158,-500.0,0.00021,30]
[339271876,1727427043167,-500.0,0.00021,30]
[339271877,1727427043176,-500.0,0.00021,30]
[339271878,1727427043186,-500.0,0.00021,30]
[339271879,1727427043195,-3000.0,0.0002101,2]
[339271880,1727427043205,-61801.9825131,0.0002101,3]
[339271881,1727427043214,-3000.0,0.0002102,2]
[339271882,1727427043223,-3000.0,0.0002103,2]
[339271883,1727427043232,-3000.0,0.0002104,2]
[339271884,1727427043242,-3000.0,0.0002105,2]
[339271885,1727427043252,-3000.0,0.0002106,2]
[339271886,1727427043261,-3000.0,0.0002107,2]
[339271887,1727427043270,-39362.9662038,0.00021078,3]
[339271891,1727427045811,-153.0,0.00019564,2]
[339271892,1727427045822,-718.54671781,0.00021078,3]
[339271893,1727427045866,-21720.46959149,0.00021078,3]
[339271894,1727427045875,-3000.0,0.0002108,2]
[339271895,1727427045885,-2784.59,0.00021084,2]
[339271896,1727427045896,-500.0,0.00021084,2]
[339271897,1727427045905,-27867.88690533,0.00021088,3]
[339271905,1727427201862,-300.0,0.00019432,2]
[339271906,1727427201888,-300.0,0.00019432,2]
[339271908,1727427212694,15452.68479238,0.00019232,2]
[339271909,1727427217624,-24900.0,0.00019433,2]
[339271910,1727427217651,-163.926489,0.00019511,2]
[339271911,1727427217676,-153.0,0.00019563,2]
[339271912,1727427217702,-153.0,0.00019563,2]
[339271913,1727427217730,-153.0,0.00019563,2]
[339271914,1727427217758,-153.0,0.00019563,2]
[339271915,1727427217783,-153.0,0.00019563,2]
[339271916,1727427217807,-153.0,0.00019563,2]
[339271917,1727427217832,-153.0,0.00019563,2]
[339271918,1727427217857,-153.0,0.00019563,2]
[339271919,1727427217881,-550.71094857,0.00019564,2]
[339271920,1727427217906,-163.926489,0.00019583,2]
[339271921,1727427217931,-163.926489,0.00019656,2]
[339271922,1727427217956,-2146.5712728,0.00019689,2]
[339271923,1727427217987,-163.926489,0.00019728,2]
[339271924,1727427218013,-163.926489,0.00019801,2]
[339271925,1727427218039,-163.926489,0.00019874,2]
[339271927,1727427227338,195.15884463,0.00019178,2]
[339271928,1727427227362,304.84115537,0.00019178,2]
[339271951,1727427603679,500.0,0.0001,2]
[339271952,1727427627320,30163.3906,0.00014,2]
[339271955,1727427751367,500.0,0.00018207,2]
[339271957,1727427755569,-500.0,0.00018207,2]
[339271958,1727427774416,-5000.0,0.00018207,2]
[339271959,1727427778703,-5000.0,0.00018207,2]
[339271960,1727427780054,-5000.0,0.00018207,2]
[339271961,1727427786296,-300.0,0.00018206,2]
[339271962,1727427786325,-4700.0,0.00018207,2]
[339271963,1727427787183,-4200.0,0.00018207,2]
[339271964,1727427787209,-254.95504354,0.0001847,2]
[339271985,1727428037120,-166.6666714,0.00017762,2]
[339271986,1727428037144,-160.453282,0.00017844,2]
[339271987,1727428037166,-160.453282,0.00017856,2]
[339271988,1727428037188,-160.453282,0.00017869,2]
[339271989,1727428037211,-160.453282,0.00017882,2]
[339271990,1727428037234,-160.453282,0.00017895,2]
[339271991,1727428037256,-907.83136027,0.000179,2]
[339271994,1727428154155,-189.9406213,0.00016881,2]
[339271997,1727428161153,-1047.8440763,0.00017668,2]
[339271998,1727428161176,-2092.16863973,0.000179,2]
[339271999,1727428161215,-226.4,0.000179,2]
[339272000,1727428161238,-160.453282,0.00017907,2]
[339272001,1727428161261,-160.453282,0.0001792,2]
[339272002,1727428161287,-160.453282,0.00017933,2]
[339272003,1727428161309,-205.479813,0.00018033,2]
[339272004,1727428161330,-200.0,0.000181,2]
[339272005,1727428161351,-604.645136,0.00018222,2]
[339272006,1727428161374,-250.0,0.00018556,2]
[339272007,1727428161395,-250.0,0.00018607,2]
[339272008,1727428161418,-250.0,0.00018658,2]
[339272009,1727428161439,-1136.28360315,0.00018658,2]
[339272010,1727428161459,-150.0,0.00018698,2]
[339272011,1727428161481,-250.0,0.00018709,2]
[339272012,1727428161504,-250.0,0.0001876,2]
[339272013,1727428161526,-250.0,0.00018811,2]
[339272014,1727428161548,-250.0,0.00018862,2]
[339272015,1727428161570,-250.0,0.00018912,2]
[339272016,1727428161592,-250.0,0.00018963,2]
[339272017,1727428161616,-300.0,0.00019013,2]
[339272018,1727428161803,-300.0,0.00019013,2]
[339272019,1727428161831,-250.0,0.00019014,2]
[339272020,1727428161855,-250.0,0.00019065,2]
[339272021,1727428161876,-523.11342325,0.00019067,2]
[339272022,1727428161900,-580.01390207,0.00019086,2]
[339272023,1727428161922,-374.94542745,0.00019086,2]
[339272024,1727428161945,-2285.70727043,0.00019087,2]
[339272025,1727428161967,-250.0,0.00019116,2]
[339272026,1727428161989,-250.0,0.00019167,2]
[339272027,1727428162011,-500.0,0.00019173,2]
[339272028,1727428162032,-500.0,0.00019173,2]
[339272029,1727428162054,-500.0,0.00019177,2]
[339272030,1727428162078,-500.0,0.00019177,2]
[339272031,1727428162100,-500.0,0.00019177,2]
[339272032,1727428162123,-500.0,0.00019177,2]
[339272033,1727428162148,-500.0,0.00019177,2]
[339272034,1727428162170,-500.0,0.00019177,2]
[339272035,1727428162190,-513.3093695,0.00019177,2]
[339272036,1727428162213,-500.0,0.00019177,2]
[339272037,1727428162237,-440.49243737,0.00019177,2]
[339272058,1727428231962,-250.0,0.00018178,2]
[339272060,1727428231972,-190.5800487,0.00018305,2]
[339272062,1727428231984,-29.00884029,0.00019077,2]
[339272131,1727428238258,-317.601464,0.00019077,2]
[339272132,1727428238312,-699.61654221,0.00019077,2]
[339272133,1727428238322,-500.0,0.00019173,2]
[339272134,1727428238331,-300.0,0.00019176,2]
[339272135,1727428238342,-300.0,0.00019176,2]
[339272136,1727428238351,-424.27811435,0.00019176,2]
[339272137,1727428238361,-189.18008901,0.00019176,2]
[339272138,1727428238370,-412.84056506,0.00019176,2]
[339272139,1727428238379,-198.27463979,0.00019176,2]
[339272140,1727428238389,-500.0,0.00019176,2]
[339272141,1727428238398,-536.48236764,0.00019176,2]
[339272142,1727428238408,-500.0,0.00019176,2]
[339272143,1727428238418,-500.0,0.00019176,2]
[339272144,1727428238428,-500.0,0.00019176,2]
[339272145,1727428238438,-500.0,0.00019176,2]
[339272146,1727428238449,-500.0,0.00019176,2]
[339272147,1727428238459,-500.0,0.00019176,2]
[339272148,1727428238469,-500.0,0.00019176,2]
[339272149,1727428238480,-500.0,0.00019176,2]
[339272150,1727428238489,-500.0,0.00019176,2]
[339272151,1727428238500,-500.0,0.00019176,2]
[339272152,1727428238509,-500.0,0.00019176,2]
[339272153,1727428238519,-500.0,0.00019176,2]
[339272154,1727428238529,-500.0,0.00019176,2]
[339272155,1727428238539,-500.0,0.00019176,2]
[339272156,1727428238551,-500.0,0.00019176,2]
[339272157,1727428238560,-500.0,0.00019176,2]
[339272158,1727428238570,-500.0,0.00019176,2]
[339272159,1727428238579,-500.0,0.00019176,2]
[339272160,1727428238588,-500.0,0.00019176,2]
[339272161,1727428238598,-601.33093695,0.00019176,2]
[339272162,1727428238608,-500.0,0.00019176,2]
[339272163,1727428238617,-500.0,0.00019176,2]
[339272164,1727428238626,-500.0,0.00019176,2]
[339272165,1727428238636,-500.0,0.00019176,2]
[339272166,1727428238646,-500.0,0.00019176,2]
[339272167,1727428238656,-500.0,0.00019176,2]
[339272168,1727428238665,-500.0,0.00019176,2]
[339272169,1727428238674,-500.0,0.00019176,2]
[339272170,1727428238684,-500.0,0.00019176,2]
[339272171,1727428238693,-500.0,0.00019176,2]
[339272172,1727428238702,-500.0,0.00019176,2]
[339272173,1727428238712,-500.0,0.00019176,2]
[339272174,1727428238725,-500.0,0.00019176,2]
[339272175,1727428238734,-500.0,0.00019176,2]
[339272176,1727428238743,-500.0,0.00019176,2]
[339272177,1727428238753,-500.0,0.00019176,2]
[339272178,1727428238762,-500.0,0.00019176,2]
[339272179,1727428238771,-500.0,0.00019176,2]
[339272180,1727428238781,-500.0,0.00019176,2]
[339272181,1727428238791,-500.0,0.00019176,2]
[339272182,1727428238801,-500.0,0.00019176,2]
[339272183,1727428238811,-500.0,0.00019176,2]
[339272184,1727428238821,-500.0,0.00019176,2]
[339272185,1727428238832,-500.0,0.00019176,2]
[339272186,1727428238843,-500.0,0.00019176,2]
[339272187,1727428238853,-500.0,0.00019176,2]
[339272188,1727428238864,-500.0,0.00019176,2]
[339272189,1727428238873,-500.0,0.00019176,2]
[339272190,1727428238883,-500.0,0.00019176,2]
[339272191,1727428238893,-500.0,0.00019176,2]
[339272192,1727428238902,-500.0,0.00019176,2]
[339272193,1727428238911,-500.0,0.00019176,2]
[339272194,1727428238921,-500.0,0.00019176,2]
[339272195,1727428238930,-500.0,0.00019176,2]
[339272196,1727428238940,-500.0,0.00019176,2]
[339272197,1727428238950,-500.0,0.00019176,2]
[339272198,1727428238960,-500.0,0.00019176,2]
[339272199,1727428238969,-500.0,0.00019176,2]
[339272200,1727428238978,-500.0,0.00019176,2]
[339272201,1727428238987,-500.0,0.00019176,2]
[339272202,1727428238997,-500.0,0.00019176,2]
[339272203,1727428239006,-500.0,0.00019176,2]
[339272204,1727428239015,-500.0,0.00019176,2]
[339272205,1727428239024,-500.0,0.00019176,2]
[339272206,1727428239034,-500.0,0.00019176,2]
[339272207,1727428239044,-500.0,0.00019176,2]
[339272208,1727428239054,-500.0,0.00019176,2]
[339272209,1727428239065,-500.0,0.00019176,2]
[339272210,1727428239074,-500.0,0.00019176,2]
[339272211,1727428239084,-500.0,0.00019176,2]
[339272212,1727428239095,-500.0,0.00019176,2]
[339272213,1727428239104,-500.0,0.00019176,2]
[339272214,1727428239114,-277.53403462,0.00019176,2]
[339272215,1727428239123,-500.0,0.00019176,2]
[339272216,1727428239132,-500.0,0.00019176,2]
[339272217,1727428239142,-500.0,0.00019176,2]
[339272218,1727428239152,-574.90524947,0.00019176,2]
[339272219,1727428239162,-41.68393755,0.00019176,2]
[339272220,1727428239293,-458.31606245,0.00019176,2]
[339272221,1727428239302,-461.82277678,0.00019176,2]
[339272229,1727428239984,-38.17722322,0.00019176,2]
[339272230,1727428239994,-500.0,0.00019176,2]
[339272232,1727428240003,-500.0,0.00019176,2]
[339272233,1727428240013,-500.0,0.00019176,2]
[339272235,1727428240024,-500.0,0.00019176,2]
[339272237,1727428240033,-500.0,0.00019176,2]
[339272239,1727428240043,-500.0,0.00019176,2]
[339272251,1727428240175,-500.0,0.00019176,2]
[339272253,1727428240185,-500.0,0.00019176,2]
[339272255,1727428240194,-500.0,0.00019176,2]
[339272257,1727428240203,-500.0,0.00019178,2]
[339272259,1727428240214,-181.95433877,0.00019178,2]
[339272262,1727428240223,-500.0,0.00019178,2]
[339272264,1727428240234,-500.0,0.00019178,2]
[339272265,1727428240243,-500.0,0.00019178,2]
[339272267,1727428240252,-500.0,0.00019178,2]
[339272269,1727428240262,-511.35248528,0.00019178,2]
[339272271,1727428240271,-500.0,0.00019178,2]
[339272273,1727428240281,-500.0,0.00019178,2]
[339272275,1727428240290,-500.0,0.00019185,2]
[339272277,1727428240300,-500.0,0.00019185,2]
[339272279,1727428240309,-500.0,0.00019185,2]
[339272281,1727428240318,-500.0,0.00019185,2]
[339272283,1727428240328,-500.0,0.00019185,2]
[339272285,1727428240337,-189.93746664,0.00019185,2]
[339272287,1727428240346,-4751.17274609,0.00019185,2]
[339272289,1727428240355,-269.27,0.00019185,2]
[339272291,1727428240365,-5705.68,0.00019185,2]
[339272293,1727428240374,-916.02,0.00019185,2]
[339272295,1727428240383,-250.0,0.00019218,2]
[339272297,1727428240393,-250.0,0.00019269,2]
[339272299,1727428240403,-250.0,0.0001932,2]
[339272301,1727428240413,-250.0,0.00019371,2]
[339272303,1727428240423,-913.506586,0.00019381,2]
[339272305,1727428240432,-250.0,0.00019422,2]
[339272307,1727428240441,-763.39,0.00019429,3]
[339272309,1727428240451,-381.69,0.00019429,3]
[339272311,1727428240460,-190.85,0.00019429,3]
[339272313,1727428240469,-572.57,0.00019429,3]
[339272315,1727428240479,-1941.52173723,0.00019439,2]
[339272317,1727428240489,-53421.4628884,0.00019439,3]
[339272319,1727428240498,-56850.830854,0.00019439,3]
[339272321,1727428240508,-500.0,0.00019452,2]
[339272323,1727428240517,-500.0,0.00019452,2]
[339272325,1727428240526,-500.0,0.00019452,2]
[339272327,1727428240535,-500.0,0.00019452,2]
[339272329,1727428240545,-500.0,0.00019452,2]
[339272331,1727428240555,-500.0,0.00019452,2]
[339272333,1727428240564,-500.0,0.00019452,2]
[339272335,1727428240574,-500.0,0.00019459,2]
[339272337,1727428240583,-5705.68,0.00019459,2]
[339272339,1727428240593,-916.02,0.00019459,2]
[339272341,1727428240602,-250.0,0.00019472,2]
[339272343,1727428240611,-500.0,0.00019523,2]
[339272345,1727428240622,-500.0,0.00019523,2]
[339272347,1727428240633,-516.85,0.00019523,2]
[339272349,1727428240642,-250.0,0.00019523,2]
[339272351,1727428240652,-153.0,0.00019532,2]
[339272353,1727428240662,-153.0,0.00019532,2]
[339272355,1727428240672,-153.0,0.00019532,2]
[339272357,1727428240682,-153.0,0.00019532,2]
[339272359,1727428240691,-153.0,0.00019532,2]
[339272361,1727428240701,-153.0,0.00019532,2]
[339272363,1727428240711,-153.0,0.00019532,2]
[339272365,1727428240723,-153.0,0.00019532,2]
[339272367,1727428240735,-153.0,0.00019532,2]
[339272369,1727428240744,-153.0,0.00019532,2]
[339272371,1727428240754,-153.0,0.00019532,2]
[339272373,1727428240765,-153.0,0.00019536,2]
[339272375,1727428240774,-153.0,0.00019536,2]
[339272377,1727428240783,-153.0,0.00019536,2]
[339272379,1727428240793,-153.0,0.00019536,2]
[339272381,1727428240803,-153.0,0.00019536,2]
[339272383,1727428240812,-153.0,0.00019536,2]
[339272385,1727428240822,-153.0,0.00019536,2]
[339272388,1727428240832,-153.0,0.00019536,2]
[339272390,1727428240842,-153.0,0.00019536,2]
[339272391,1727428240851,-153.0,0.00019536,2]
[339272393,1727428240860,-153.0,0.00019537,2]
[339272395,1727428240870,-153.0,0.00019541,2]
[339272398,1727428240879,-153.0,0.00019541,2]
[339272400,1727428240889,-153.0,0.00019541,2]
[339272402,1727428240898,-153.0,0.00019541,2]
[339272403,1727428240907,-153.0,0.00019541,2]
[339272405,1727428240916,-153.0,0.00019541,2]
[339272407,1727428240926,-153.0,0.00019541,2]
[339272409,1727428240935,-153.0,0.00019541,2]
[339272411,1727428240945,-153.0,0.00019541,2]
[339272413,1727428240955,-153.0,0.00019541,2]
[339272415,1727428240964,-153.0,0.00019541,2]
[339272417,1727428240973,-153.0,0.00019545,2]
[339272419,1727428240986,-153.0,0.00019545,2]
[339272421,1727428240994,-153.0,0.00019545,2]
[339272423,1727428241004,-153.0,0.00019545,2]
[339272425,1727428241013,-153.0,0.00019545,2]
[339272427,1727428241022,-153.0,0.00019545,2]
[339272429,1727428241032,-153.0,0.00019545,2]
[339272431,1727428241042,-153.0,0.00019545,2]
[339272433,1727428241051,-316.42383446,0.00019564,2]
[339272435,1727428241063,-1000.0,0.00019721,2]
[339272437,1727428241073,-500.0,0.00019726,2]
[339272439,1727428241082,-500.0,0.00019726,2]
[339272441,1727428241092,-500.0,0.00019726,2]
[339272443,1727428241101,-500.0,0.00019726,2]
[339272445,1727428241111,-500.0,0.00019726,2]
[339272447,1727428241120,-500.0,0.00019726,2]
[339272449,1727428241130,-500.0,0.00019726,2]
[339272451,1727428241139,-500.0,0.00019733,2]
[339272453,1727428241148,-5705.68,0.00019733,2]
[339272455,1727428241158,-916.02,0.00019733,2]
[339272457,1727428241167,-273.31,0.00019796,2]
[339272459,1727428241177,-516.85,0.00019796,2]
[339272461,1727428241187,-500.0,0.00019864,2]
[339272463,1727428241197,-398.54259584,0.00019899,2]
[339272465,1727428241206,-6072.96366598,0.00019972,2]
[339272467,1727428241216,-53421.4628884,0.00019989,3]
[339272469,1727428241226,-56850.830854,0.00019989,3]
[339272471,1727428241238,-160.0,0.00019999,2]
[339272473,1727428241247,-200.0,0.00019999,2]
[339272475,1727428241256,-500.0,0.00019999,2]
[339272477,1727428241266,-500.0,0.00019999,2]